Cogmind - Beta 17 @@@ ROGUE MODE // 2026.07.16 @ 06:24:47 Player: nnnnsk Result: Destroyed by QT-E5E(R) with Subdweller Machine Gun Performance ------------- Evolutions (0) 0 Regions Visited (2) 400 Robots Destroyed (26) 130 Value Destroyed (728) 728 Prototype IDs (0) 0 Alien Tech Used (0) 0 Bonus (0) 0 TOTAL SCORE: 1258 Bonus ------- None Cogmind --------- Core Integrity 0/250 Matter 285/300 Energy 125/125 System Corruption 1% Temperature Cool (0) Movement Treading (160) Location -10/Subcaves Parts ------- > --- POWER (1) -------- Light Ion Engine > --- PROPULSION (2) --- Light Treads Light Treads > --- UTILITY (2) ------ Large Storage Unit > --- WEAPON (2) ------- Light Assault Rifle > --- INVENTORY (15) --- Makeshift Flight Unit Improved Heat Sink Structural Scanner Visual Processing Unit Sensor Array Signal Interpreter Improved Terrain Scanner Makeshift Hacking Suite Grenade Launcher Grenade Launcher Peak State ------------ > --- POWER ------------ Light Nuclear Core > --- PROPULSION ------- Light Treads Light Treads > --- UTILITY ---------- Large Storage Unit Light Armor Plating > --- WEAPON ----------- Riot Gun Barrage Gun > --- INVENTORY -------- Light Ion Engine Light Treads Light Treads Improved Heat Sink Structural Scanner Visual Processing Unit Sensor Array Signal Interpreter Improved Terrain Scanner Medium Laser Light Assault Rifle Light Assault Rifle Grenade Launcher Grenade Launcher Mining Laser [Rating: 15] Favorites ----------- Power Light Nuclear Core Engine Light Ion Engine Power Core Light Nuclear Core Propulsion Light Treads Treads Light Treads Utility Small Storage Unit Device Improved Heat Sink Storage Small Storage Unit Protection Light Armor Plating Weapon Particle Gun Energy Gun Particle Gun Ballistic Gun Assault Rifle Launcher Grenade Launcher Special Weapon Mining Laser Build | -11 -10 -10 ------- Run | Yrd Mat Sub Slots Evolved . | . . . Power . | . . . Propulsion . | . . . Utility . | . . . Weapon . | . . . Parts Attached 26 | 8 10 8 Power 4 | 1 2 1 Engine 3 | 1 1 1 Core 1 | . 1 . Reactor . | . . . Propulsion 4 | 2 . 2 Treads 4 | 2 . 2 Leg . | . . . Wheel . | . . . Hover . | . . . Flight . | . . . Utility 8 | 2 4 2 Device 3 | 1 1 1 Storage 4 | 1 3 . Processor . | . . . Hackware . | . . . Protection 1 | . . 1 Artifact . | . . . Weapon 10 | 3 4 3 Energy Gun 5 | 2 2 1 Energy Cannon . | . . . Ballistic Gun 3 | 1 . 2 Ballistic Cannon . | . . . Launcher 1 | . 1 . Special Weapon 1 | . 1 . Impact Weapon . | . . . Slashing Weapon . | . . . Piercing Weapon . | . . . Special Melee Weapon . | . . . Unidentified Prototypes . | . . . Corrupted Parts 1 | . 1 . System Corruption 1 | . 1 . Parts Lost 10 | . 3 7 Power 2 | . 1 1 Propulsion 2 | . . 2 Utility 1 | . . 1 Weapon 5 | . 2 3 Highest Loss Streak 6 | . 2 6 To Critical Strikes . | . . . Average Backups 10 | 3 9 14 Power . | . . . Propulsion 2 | 2 2 2 Utility 4 | . 4 6 Weapon 3 | . 2 3 Tool/Special . | . . . Unused Backups 14 | . 8 6 Power . | . . . Propulsion 7 | . 6 1 Utility 6 | . 2 4 Weapon 1 | . . 1 Tool/Special . | . . . Average Slot Usage (%) 98 | . 99 96 Engine 4 | . 6 . Core 9 | . 7 13 Treads 27 | . 27 27 Device 11 | . 14 7 Storage 14 | . 14 14 Protection 1 | . . 5 Energy Gun 18 | . 21 13 Ballistic Gun 5 | . 5 6 Special Weapon 2 | . . 5 Peak Build Rating 15 | 9 14 15 Average Rating 11 | 5 11 13 On Entrance 7 | . 9 14 Avg Prop Armor Cover (%) . | . . . Naked Turns . | . . . Heaviest Build 92 | 13 92 34 Greatest Support 40 | 40 40 40 Greatest Overweight (x) 2 | . 2 1 Average Overweight (x) . | . . . Largest Inventory Capacity 25 | 8 25 15 Average Capacity 12 | 7 12 15 Most Carried 15 | 6 15 15 Average Carried 10 | 4 9 14 Final Capacity 15 | 8 15 15 Final Carried 15 | 6 15 10 Class Distribution -------------------- 75% | Mutant 24% | Scavenger-Mutant Dominant Class ---------------- Mutant | -10/Materials Mutant | -10/Subcaves Resources | -11 -10 -10 ----------- Run | Yrd Mat Sub Matter Collected 736 | 256 280 200 Remotely . | . . . Salvage Created 919 | 43 492 384 Parts 60 | 8 33 19 Haulers Intercepted 1 | . 1 . Recyclers Shooed 1 | . 1 . Parts Field Recycled . | . . . Retrieved Matter . | . . . Parts Self-Destructed 3 | . . 3 Prevented . | . . . Parts Restored . | . . . Kills | -11 -10 -10 ------- Run | Yrd Mat Sub Combat Hostiles Destroyed 20 | . 12 8 Guns 16 | . 9 7 AOE 4 | . 3 1 Classes Destroyed 9 | 2 5 2 Worker 1 | 1 . . Builder 1 | . 1 . Tunneler 1 | 1 . . Hauler 1 | . 1 . Watcher 2 | . 2 . Swarmer 3 | . 3 . Grunt 10 | . 9 1 Sentry 1 | . . 1 Subdweller 6 | . . 6 Best Kill Streak 3 | 1 3 2 Combat Bots Only 3 | . 3 2 Max Kills in Single Turn 3 | 1 3 1 Gunslinging . | . . . Exploded 3 | . 3 1 Melee . | . . . Uniques/NPCs Destroyed . | . . . Combat | -11 -10 -10 -------- Run | Yrd Mat Sub Hostile Shots Fired 114 | . 61 53 Missed 33 | . 18 15 Hits 81 | . 43 38 Projectile 81 | . 43 38 AOE 2 | . . 2 Damage Taken 1431 | . 536 895 Core 265 | . 133 132 Absorbed by Shields . | . . . Regen/Repaired (Parts) 65 | . 65 . Core Remaining (%) 100 | 100 . . Volleys Fired 94 | 5 62 27 Largest 2 | 2 2 2 Hottest 150 | 70 130 150 Shots Fired 167 | 10 111 46 Gun 147 | 10 98 39 Cannon . | . . . Launcher 1 | . 1 . Special 19 | . 12 7 Kinetic 49 | 5 26 18 Thermal 85 | 5 73 7 Explosive 1 | . 1 . Electromagnetic 32 | . 11 21 Robot Hit Streak 12 | 4 8 12 Robot Miss Streak 4 | 2 4 1 Penetration Max . | . . . Secondary Targets 1 | . . 1 Max Gunslinging Chain 1 | . . 1 Shots Hit Robots 114 | 5 70 39 Core Hits 46 | 3 27 16 Critical Kills . | . . . Critical Parts Destroyed . | . . . Critical Strikes . | . . . Melee Attacks . | . . . Impact . | . . . Slashing . | . . . Piercing . | . . . Sneak Attacks . | . . . Combat Hostiles . | . . . Follow-up Attacks . | . . . Damage Inflicted 1995 | 83 1125 787 Guns 1634 | 83 949 602 Cannons . | . . . Explosions 237 | . 124 113 Melee . | . . . Ramming 4 | . 4 . Kinetic 580 | 34 269 277 Thermal 858 | 49 624 185 Explosive 124 | . 124 . Electromagnetic 429 | . 104 325 Impact . | . . . Slashing . | . . . Piercing . | . . . Highest Corruption 1 | . 1 1 Average Corruption 1 | . 1 1 Corruption Purged . | . . . Corruption Blocked . | . . . Effects 9 | . 6 3 Message Errors 2 | . 1 1 Matter Fused 3 | . 3 . Heat Flow Errors 2 | . 1 1 Energy Discharges 1 | . . 1 Data Loss (minor) 1 | . 1 . Overload Shots . | . . . Overflow Damage 13 | . . 13 Projectiles . | . . . Explosions 13 | . . 13 Melee . | . . . Knockbacks . | . . . Impact . | . . . Kinetic . | . . . Secondary . | . . . Self-Inflicted Damage 49 | . . 49 Shots 1 | . . 1 Rammed 2 | . 2 . Targets Rammed 2 | . 2 . Kicked . | . . . Crushed . | . . . Highest Temperature 258 | 27 258 172 Average Temperature 36 | 11 41 17 Received Heat Transfer 411 | . 297 114 Siege Activations . | . . . Martial Activations . | . . . Shielding Activations . | . . . Robots Disrupted . | . . . Combat Hostiles . | . . . Robots Corrupted . | . . . Combat Hostiles . | . . . Parts Fried 5 | . 1 4 Impact Corruptions . | . . . Robots Melted . | . . . Combat Hostiles . | . . . Parts Melted 2 | . 2 . Heat Transferred 2015 | 148 1617 250 Parts Sabotaged . | . . . Parts Stolen . | . . . Parts Stripped . | . . . Power Chain Reactions 1 | . . 1 Alert | -11 -10 -10 ------- Run | Yrd Mat Sub Maximum Alert Level . | . . . Low Security (%) 100 | 100 100 . Level 1 . | . . . Level 2 . | . . . Level 3 . | . . . Level 4 . | . . . Level 5 . | . . . High Security . | . . . Max Security . | . . . Peak Influence 107 | 5 107 . Initial . | . . . Average 22 | . 23 . Influence Increases 459 | 10 394 55 Destroy 0b10 Robot/C 280 | . 240 40 Destroy 0b10 Robot/NC 30 | 10 20 . Destroy Leader 46 | . 46 . Successful Hack 23 | . 23 . Destroy Structure 20 | . 20 . Lose Combat Pursuer 60 | . 45 15 Influence Decreases 459 | 10 394 55 Time Decay 435 | 10 370 55 Lost Part 14 | . 14 . Lost Ally 10 | . 10 . Squads Dispatched 1 | . 1 . Investigation . | . . . Extermination . | . . . Reinforcement 1 | . 1 . Assault . | . . . Garrison . | . . . Intercept . | . . . Searches Triggered . | . . . Construction Impeded . | . . . Haulers Reinforced . | . . . Active Scanning Responses . | . . . Cargo Convoy Interrupts . | . . . Stealth | -11 -10 -10 --------- Run | Yrd Mat Sub Distress Signals 2 | . 2 . Communications Jammed . | . . . Distress Signals . | . . . Times Spotted 36 | . 24 12 Peak Tracking Total 3 | . 3 3 Tactical Retreats 3 | . 2 1 Traps | -11 -10 -10 ------- Run | Yrd Mat Sub Traps Triggered . | . . . Indirectly . | . . . Trap Hack Attempts . | . . . Triggered . | . . . Disarmed . | . . . Reprogrammed . | . . . Reused . | . . . Traps Extracted . | . . . Installed . | . . . Triggered . | . . . Machines | -11 -10 -10 ---------- Run | Yrd Mat Sub Machines Disabled . | . . . Max in Single Turn . | . . . Machines Repaired . | . . . Machines Dismantled . | . . . Machines Sabotaged . | . . . Overloaded Fab Kills . | . . . Hacking | -11 -10 -10 --------- Run | Yrd Mat Sub Machines Accessed 7 | . 7 . Terminals 6 | . 6 . Fabricators . | . . . Repair Stations 1 | . 1 . Recycling Units . | . . . Scanalyzers . | . . . Garrison Access . | . . . Total Hacks 23 | . 23 . Successful 14 | . 14 . Failed 9 | . 9 . Catastrophic 1 | . 1 . Database Lockouts . | . . . Manual 19 | . 19 . Terminals 21 | . 21 . Fabricators . | . . . Repair Stations 2 | . 2 . Recycling Units . | . . . Scanalyzers . | . . . Garrison Access . | . . . Terminal Hacks 4 | . 4 . Robot Analysis 1 | . 1 . Locate Traps 1 | . 1 . Zone Layout 2 | . 2 . Fabricator Hacks . | . . . Repair Station Hacks 2 | . 2 . Scan Component 1 | . 1 . Repair 1 | . 1 . Recycling Unit Hacks . | . . . Scanalyzer . | . . . Garrison Access Hacks . | . . . Unauthorized Hacks 8 | . 8 . Terminals 8 | . 8 . Assimilate 1 | . 1 . Botnet 2 | . 2 . Skim 5 | . 5 . Fabricators . | . . . Repair Stations . | . . . Recycling Units . | . . . Scanalyzers . | . . . Garrison Access . | . . . Data Cores Recovered . | . . . Used . | . . . Hacking Detections 5 | . 5 . Full Trace Events . | . . . Feedback Events . | . . . Feedback Blocked . | . . . Robot Schematics Acquired . | . . . Robots Built . | . . . Authchips . | . . . Time . | . . . Total Robot Build Rating . | . . . Part Schematics Acquired . | . . . Parts Built . | . . . Authchips . | . . . Time . | . . . Total Part Build Rating . | . . . Part Studies Acquired . | . . . Parts Repaired 1 | . 1 . Time 26 | . 26 . Parts Recycled . | . . . Recycled Matter . | . . . Retrieved Matter . | . . . Retrieved Components . | . . . Parts Scanalyzed . | . . . Part Schematics Acquired . | . . . Parts Damaged . | . . . Bothacking | -11 -10 -10 ------------ Run | Yrd Mat Sub Used RIF Installer . | . . . Robots Hacked . | . . . Non-combat . | . . . Combat . | . . . Robot Hacks Applied . | . . . Relay Couplers Released . | . . . Fabnet Peak Effective % . | . . . Robots Rewired . | . . . Allies Hacked . | . . . Hacks Repelled . | . . . Allies | -11 -10 -10 -------- Run | Yrd Mat Sub Total Allies 1 | . 1 . Largest Group 1 | . 1 . Highest-Rated Group 10 | . 10 . Highest-Rated Ally 10 | . 10 . Total Orders . | . . . Ally Attacks . | . . . Total Damage . | . . . Kills . | . . . Allies Corrupted . | . . . Allies Melted . | . . . Intel | -11 -10 -10 ------- Run | Yrd Mat Sub Active Infowar (turns) 1139 | 32 676 431 Terrain 708 | 32 676 . Structural 431 | . . 431 Robot Analysis Total 1 | . 1 . Derelict Logs Recovered . | . . . Drone Launches . | . . . Drone Recoveries . | . . . Exploration | -11 -10 -10 ------------- Run | Yrd Mat Sub Turns Passed 2595 | 123 1670 802 Spaces Moved 1190 | 55 746 389 Core 3 | 3 . . Treads 1187 | 52 746 389 Legs . | . . . Wheels . | . . . Hover . | . . . Flight . | . . . Fastest Speed 50 | 50 160 160 Average Speed 170 | 154 176 161 Slowest Speed 320 | 160 320 240 Overloaded Moves . | . . . Propulsion Burnouts . | . . . Robots Hopped . | . . . Potential Cave-ins . | . . . Cave-ins Triggered . | . . . Exploration Rate (%) 37 | 5 84 23 Regions Visited 2 Branch Regions 1 Pre-discovered Areas 3 | . 3 . Known Exits Taken . | . . . Unknown Exits Taken 2 | 1 1 . Scrap Searched 7 | . . 7 Spaces Dug 9 | . 9 . Terrain Destroyed 18 | . 18 . Melee . | . . . Projectile 10 | . 10 . AOE 8 | . 8 . Terrain Rammed . | . . . Walls Destroyed . | . . . Machines Disabled . | . . . Actions | -11 -10 -10 --------- Run | Yrd Mat Sub Total 1548 | 79 967 502 Wait 183 | 6 111 66 Move 1188 | 54 745 389 Hop . | . . . Pick Up 27 | 6 19 2 Fast Attach 9 | 7 2 . Attach 8 | . 3 5 Detach 1 | . 1 . Swap 23 | 1 11 11 Drop 13 | . 11 2 Fire 94 | 5 62 27 Melee . | . . . Ram . | . . . Kick . | . . . Crush 2 | . 2 . Escape Stasis . | . . . Rewire . | . . . Trap . | . . . Miscellaneous . | . . . Route ------- -11/Scrapyard -10/Materials (discovered 5 exits: *Mat x3 / [*Min] / [*Sub]) -10/Subcaves (discovered 1 exit: [*Mat]) History --------- Turn | Location | Event 19 | -11/Scrapyard | Discovered new exit (range 16) 124 | -11/Scrapyard | Entered Materials 315 | -10/Materials | Build established: Mutant 751 | -10/Materials | Discovered new exit (range 11) 928 | -10/Materials | Core integrity fell below 50% 949 | -10/Materials | Discovered new exit (range 10) 1020 | -10/Materials | Learned location of Mines (-9) 1081 | -10/Materials | Repaired Lgt. Treads 1086 | -10/Materials | Identified exit to Materials 1113 | -10/Materials | Discovered exit to Materials (range 10) 1116 | -10/Materials | Learned Storage trap positions 1118 | -10/Materials | Loaded intel: 2 recycling unit locations 1119 | -10/Materials | Learned location of 1 exit from Materials 1120 | -10/Materials | Learned location of Storage (-9) 1128 | -10/Materials | Learned Materials emergency access door positions 1146 | -10/Materials | Learned location of Recycling (-9) 1464 | -10/Materials | Build established: Scavenger-Mutant 1794 | -10/Materials | Entered Subcaves 1795 | -10/Subcaves | Approached by a straggling Scientist 1849 | -10/Subcaves | Disturbed a concealed Subdweller 1914 | -10/Subcaves | Shifting Twisted Machinery released Mak. Hacking Suite 1926 | -10/Subcaves | Shifting Twisted Machinery released Sub. Beam Cannon 2098 | -10/Subcaves | Build established: Mutant 2131 | -10/Subcaves | Discovered new exit (range 14) 2132 | -10/Subcaves | Ambushed by Subdwellers from Twisted Machinery 2520 | -10/Subcaves | Disturbed a concealed Subdweller 2526 | -10/Subcaves | Disturbed a concealed Subdweller 2530 | -10/Subcaves | Core integrity fell below 20% 2534 | -10/Subcaves | Disturbed a concealed Subdweller 2540 | -10/Subcaves | Disturbed a concealed Subdweller 2596 | -10/Subcaves | Destroyed by QT-E5E(R) with Subdweller Machine Gun Last Messages --------------- 02534_ Chain reaction triggered in Sub. Power Source. 02534_ Sub. Optics fried. 02534_ JS-MB7(R) destroyed. 02534_ Riot Gun destroyed. 02534_ Destroyed Riot Gun. 02534_ 5B-D9J(R) angrily emerges from the Twisted Machinery. 02534_ QT-E5E(R) suffers critical hit (Destroy). 02539_ QT-E5E(R) affixes Scrap Shield Fragment to Scrap Shield. 02540_ Acquired 10 matter. 02540_ E9-4I5(R) angrily emerges from the Twisted Machinery. 02541_ Acquired 1 matter. 02542_ Lgt. Armor Plating destroyed. 02559_ Lgt. Treads destroyed. 02561_ Mining Laser destroyed. 02565_ Lgt. Nuclear Core destroyed. 02573_ Lgt. Treads destroyed. Map ----- +----------------------------------------------------+ | ????????????????????????????????????????????## ""# | | ????????????????????????????????????????????## "# | | ????????????????????????????????????????????## # | | ????????????????????????????????????????????## | | ????????????????????????????????????????????### | | ????????????????????????????????????????????### | | ????????????????????????????????????????????## | | ????????????????????????????????????????????### %! | | ?????????????????????????????######????????#### ! | | ????????????????????????????################## | | ?????????????????????????###### ############ | | ?????????????#######?????##### ## &### | | ?????????????#[%#&&#?????## # ## !%&& ## | | ?????????????#&[% %#?????## "## !!& ### | | ????????????###"|###?????# ## ""] ## | | ????????????#### &######### ## " #" ### ## | | ???????????### #%##########" ### " ###### ### | | ???????????### <&< ## # ""#### ###### #### | | #######????## &* ## "#### ####?####### | | #########??## ## ### ########### | | # # ###??## ## # ##### ########### | | ###?## ### ###### ####&###### | | ### ###### ## ;;;; # "" %!% !#### | | ##"## ###### "" ##=& ##### | | &$&# ###### "" ###! ####### | | % %"# # ##### # @; """ ### ##### | | % $# ###### ## ;;;##" ##### #### | | & ## # ##### ###; ; ### ## ####"" ##### | | # # ## ###### #### ######## #####" ###### | | # #########; ####### " "" ###### | | ## ## #### ##??### #""""" ###### | | ### # ## #### ###??#########" ### | | ####### " ; ###????####### ### | | ?###### ";;R ###????????### ### | | ?????### R ###???????### ## | | ?????#### R ##????????## ## # | | ??????### ## ###????????## ## | | ??????? ## ## ###????????## ## | | ??????? #### ## ##?????????## ### ## | | ????????####### ######????????## #### ## | | ??????????##### ######????????######## # | | ?????????????## ## ##????????????######## # | | ?????????????## ######??????????????????### # | | ?????????????### ######??????????????????### ##### | | ?????????????######???????????????????????######## | | ??????????????#####???????????????????????#####??? | | ?????????????????????????????????????????????????? | | ?????????????????????????????????????????????????? | | ?????????????????????????????????????????????????? | | ?????????????????????????????????????????????????? | +----------------------------------------------------+ Best States ------------- Heat Dissipation 39 Energy Generation 14 Energy Capacity 160 Matter Stores 300 Matter Capacity 300 Sight Range 16 Terrain Scan Range 16 Terrain Scan Density 10 Armor Coverage 150 Evasion (%) 40 Recoil Reduction 2 Item Schematics ----------------- None Robot Schematics ------------------ None Fabricated ------------ Nothing Repaired ---------- Lgt. Treads | 53% | -10/Materials Studied --------- None Alien Tech Used ----------------- None Achievements -------------- None Challenges ------------ None Game ------ Seed SingularityBombEngine Manual? 0 Play Time 00:33:47 Cumulative 122.3 hours Start 2026.07.15 @ 21:12:35 End 2026.07.16 @ 06:24:47 Sessions 3 Manual Loads 0 Difficulty Rogue Special Mode None Game No. 120 Rogue 113 Adventurer 0 Explorer 7 Win Type - Total 1 Types 1/0/0/0/0/0/0/0/0/0 Lore% 36 Gallery% 45 Achievement% 36 Wizard Run 0 Options --------- Layout 1 ASCII 0 Keyboard 1 Movement Numpad Keybinds 0 Fullscreen 1 Font 32/SmallcapsGlow Map View 50x35 Zoom Use 0% Tactical HUD 1 Map Filters NONE Filters NONE Steam 1 RUN: dbd60b88-e94b-4de4-b04b-d06da5875262